Cogmind - Beta 12 @@@ ROGUE MODE // 2023.10.04 @ 20:51:21 Player: Trantor Result: Destroyed by Y-45 Defender with Beam Rifle Performance ------------- Evolutions (2) 1000 Regions Visited (9) 1800 Robots Destroyed (193) 965 Value Destroyed (5814) 5814 Prototype IDs (37) 740 Alien Tech Used (0) 0 Bonus (1591) 1591 TOTAL SCORE: 11910 Bonus ------- High Alert Combat Kills 1021 Follower Combat Kills 84 Entered Garrisons 200 Aligned with FarCom 300 Friendly Fire -14 Cogmind --------- Core Integrity 0/550 Matter 127/500 Energy 96/100 System Corruption 4% Temperature Cool (11) Movement Treading (240) Ox1 Location -8/Materials Parts ------- > --- POWER (1) -------- (None) > --- PROPULSION (3) --- Improved Treads Improved Treads > --- UTILITY (3) ------ Huge Storage Unit High-capacity Matter Pod Launcher Guidance Computer > --- WEAPON (4) ------- High-powered Shotgun Improved Light Cannon > --- INVENTORY (25) --- Heavy Ion Engine Improved Treads Hardened Medium Armor Plating Improved Light Armor Plating Improved Light Armor Plating Improved Light Armor Plating Insulated Plating Improved Shield Generator High-powered Tractor Beam Supersonic Drone Bay (1/1) Advanced Beam Cannon Heavy Assault Rifle Flak Cannon Shock Bomb Launcher Rocket Launcher Improved Grenade Launcher Improved Grenade Launcher Heavy Flail Peak State ------------ > --- POWER ------------ Heavy Ion Engine > --- PROPULSION ------- Improved Treads Improved Treads Improved Treads > --- UTILITY ---------- Huge Storage Unit Hardened Medium Armor Plating Improved Shield Generator > --- WEAPON ----------- Assault Cannon Assault Cannon Flak Cannon Flak Cannon > --- INVENTORY -------- Heavy Ion Engine Improved Treads Improved Treads Improved Treads Improved Treads Improved Treads Launcher Guidance Computer Improved Light Armor Plating Improved Light Armor Plating Improved Light Armor Plating Improved Light Armor Plating Insulated Plating Improved Shield Generator High-powered Tractor Beam Supersonic Drone Bay Advanced Beam Cannon Improved Light Cannon Flak Cannon Shock Bomb Launcher Rocket Launcher Rocket Launcher Rocket Launcher Rocket Launcher Improved Grenade Launcher Heavy Flail [Rating: 36] Favorites ----------- Power Reinforced Ion Engine Engine Reinforced Ion Engine Power Core Nuclear Core Propulsion Improved Treads Treads Improved Treads Leg Aluminum Leg Wheel Wheel Utility Huge Storage Unit Device Improved Shield Generator Storage Huge Storage Unit Processor Launcher Guidance Computer Protection Light Armor Plating Weapon Heavy Assault Rifle Energy Gun Medium Laser Energy Cannon Advanced Beam Cannon Ballistic Gun Heavy Assault Rifle Ballistic Cannon Assault Cannon Launcher Rocket Launcher Impact Weapon Heavy Flail Build | -11 -10 -10 -9 -9 -9 -8 -8 -8 -8 ------- Run | Jun Mat Min Mat Min Exi Min Mat Gar Mat Slots Evolved 4 | . . . 2 . . . 2 . . Power . | . . . . . . . . . . Propulsion 1 | . . . 1 . . . . . . Utility 1 | . . . . . . . 1 . . Weapon 2 | . . . 1 . . . 1 . . Parts Attached 144 | 1 27 5 23 2 1 12 39 14 20 Power 9 | . 4 . 1 . . . 3 . 1 Engine 8 | . 4 . 1 . . . 3 . . Core 1 | . . . . . . . . . 1 Reactor . | . . . . . . . . . . Propulsion 32 | . 8 1 9 . . 2 8 . 4 Treads 14 | . . . 3 . . . 7 . 4 Leg 6 | . 6 . . . . . . . . Wheel 12 | . 2 1 6 . . 2 1 . . Hover . | . . . . . . . . . . Flight . | . . . . . . . . . . Utility 26 | . 4 . 3 . . . 11 2 6 Device 7 | . . . . . . . 7 . . Storage 5 | . 3 . . . . . 1 . 1 Processor 1 | . . . . . . . . . 1 Hackware . | . . . . . . . . . . Protection 13 | . 1 . 3 . . . 3 2 4 Artifact . | . . . . . . . . . . Weapon 77 | 1 11 4 10 2 1 10 17 12 9 Energy Gun 1 | . 1 . . . . . . . . Energy Cannon 1 | . . . . . . . 1 . . Ballistic Gun 22 | 1 8 2 4 1 1 2 1 1 1 Ballistic Cannon 21 | . . . 3 . . 2 10 3 3 Launcher 25 | . 2 2 3 1 . 5 4 4 4 Special Weapon . | . . . . . . . . . . Impact Weapon 7 | . . . . . . 1 1 4 1 Slashing Weapon . | . . . . . . . . . . Piercing Weapon . | . . . . . . . . . . Special Melee Weapon . | . . . . . . . . . . Unidentified Prototypes 1 | . . . . . . . 1 . . Parts Lost 15 | . . . 1 . . . . . 14 Power 1 | . . . . . . . . . 1 Propulsion 5 | . . . 1 . . . . . 4 Utility 4 | . . . . . . . . . 4 Weapon 5 | . . . . . . . . . 5 Highest Loss Streak 7 | . . . 1 . . . . . 7 To Critical Strikes . | . . . . . . . . . . Average Slot Usage (%) 99 | . 98 100 99 100 100 99 99 99 92 Engine 10 | . 13 14 11 11 11 11 8 9 3 Treads 13 | . . . 10 11 11 11 23 27 26 Leg 6 | . 27 . . . . . . . . Wheel 9 | . . 28 22 22 22 22 3 . . Device 2 | . . . . . . . 8 7 . Storage 11 | . 14 14 11 11 11 11 11 9 9 Protection 11 | . 13 14 11 11 11 11 6 10 12 Ballistic Gun 15 | . 26 27 21 20 22 13 6 1 8 Ballistic Cannon 13 | . . . 10 11 11 11 26 26 17 Impact Weapon 1 | . . . . . . . 2 7 6 Naked Turns . | . . . . . . . . . . Heaviest Build 122 | 14 99 99 108 108 107 108 122 122 118 Greatest Support 69 | 20 20 20 30 20 20 20 69 69 69 Greatest Overweight (x) 32 | . 32 4 5 5 5 5 5 1 3 Average Overweight (x) 3 | . 2 4 4 5 5 5 1 1 1 Largest Inventory Capacity 25 | 8 25 25 25 25 25 25 25 25 25 Average Capacity 24 | 8 21 25 25 25 25 25 25 25 25 Most Carried 25 | 6 25 25 25 25 25 25 25 25 25 Average Carried 23 | 6 17 24 24 24 24 24 24 24 23 Final Capacity 25 | 8 25 25 25 25 25 25 25 25 25 Final Carried 25 | 6 25 25 25 25 25 25 25 25 18 Class Distribution -------------------- 57% | Mutant 34% | Tank 7% | Skirmisher Dominant Class ---------------- Mutant | -10/Materials Mutant | -10/Mines Tank | -9/Materials Mutant | -9/Mines Mutant | -9/Exiles Mutant | -8/Mines Tank | -8/Materials Mutant | -8/Garrison Mutant | -8/Materials Resources | -11 -10 -10 -9 -9 -9 -8 -8 -8 -8 ----------- Run | Jun Mat Min Mat Min Exi Min Mat Gar Mat Matter Collected 5241 | 200 876 217 952 79 10 333 911 1064 599 Remotely . | . . . . . . . . . . Salvage Created 4798 | . 1099 126 1151 77 . 336 787 604 618 Parts 337 | . 94 18 62 11 . 14 59 51 28 Haulers Intercepted 12 | . 2 . 5 . . . 5 . . Recyclers Shooed 3 | . . . 2 . . . . . 1 Parts Field Recycled . | . . . . . . . . . . Retrieved Matter . | . . . . . . . . . . Parts Self-Destructed . | . . . . . . . . . . Prevented . | . . . . . . . . . . Kills | -11 -10 -10 -9 -9 -9 -8 -8 -8 -8 ------- Run | Jun Mat Min Mat Min Exi Min Mat Gar Mat Combat Hostiles Destroyed 133 | . 16 7 18 6 . 12 24 29 21 Melee 3 | . . . . . . . . . 3 Guns 30 | . 8 2 8 5 . 2 3 . 2 Cannons 46 | . . . 6 . . . 8 24 8 AOE 53 | . 8 5 4 1 . 10 13 5 7 Classes Destroyed 16 | . 9 . 1 . . 1 . 1 4 Worker 22 | . 11 2 2 . . . 5 . 2 Builder 10 | . 7 2 . . . . 1 . . Tunneler 2 | . 1 . . . . . 1 . . Hauler 12 | . 2 . 5 . . . 5 . . Recycler 7 | . 3 . 3 . . . . . 1 Mechanic 1 | . . . . . . . . . 1 Operator 1 | . 1 . . . . . . . . Watcher 5 | . 3 . 2 . . . . . . Swarmer 48 | . 9 6 3 6 . 3 10 11 . Cutter 1 | . . . . . . . . 1 . Grunt 53 | . 7 1 9 . . 8 5 10 13 Brawler 1 | . . . . . . . . . 1 Duelist 2 | . . . . . . . . . 2 Protector 1 | . . . . . . . . . 1 Sentry 22 | . . . 6 . . . 7 6 3 Hunter 5 | . . . . . . 1 2 1 1 Best Kill Streak 11 | . 11 4 5 2 . 3 8 4 5 Combat Bots Only 11 | . 11 3 4 2 . 3 5 4 4 Max Kills in Single Turn 5 | . 2 4 3 1 . 2 5 2 3 Gunslinging . | . . . . . . . . . . Exploded 4 | . 2 3 2 1 . 2 4 2 2 Melee 1 | . . . . . . . . . 1 Uniques/NPCs Destroyed . | . . . . . . . . . . Combat | -11 -10 -10 -9 -9 -9 -8 -8 -8 -8 -------- Run | Jun Mat Min Mat Min Exi Min Mat Gar Mat Damage Taken 4924 | . 374 106 517 54 . 147 580 788 2358 Core 795 | . 83 48 66 8 . 27 32 122 409 Absorbed by Shields 495 | . . . . . . . 218 277 . Regen/Repaired (Parts) 147 | . . . 18 . . . 129 . . Core Remaining (%) 73 | 100 . 47 . . . 74 . . . Volleys Fired 335 | . 99 10 50 7 . 20 46 50 53 Largest 4 | . 2 2 3 2 . 3 4 4 4 Hottest 176 | . 70 46 85 46 . 101 176 176 150 Shots Fired 771 | . 191 16 142 13 . 33 136 127 113 Gun 405 | . 184 12 92 12 . 12 58 3 32 Cannon 304 | . . . 46 . . 8 67 121 62 Launcher 62 | . 7 4 4 1 . 13 11 3 19 Special . | . . . . . . . . . . Kinetic 697 | . 177 12 138 12 . 20 120 124 94 Thermal 12 | . 7 . . . . . 5 . . Explosive 61 | . 7 4 4 1 . 13 11 3 18 Electromagnetic 1 | . . . . . . . . . 1 Robot Hit Streak 16 | . 10 3 7 9 . 7 16 9 9 Robot Miss Streak 13 | . 7 1 3 1 . 2 6 13 5 Penetration Max . | . . . . . . . . . . Secondary Targets 2 | . 2 . . . . . . . . Max Gunslinging Chain 1 | . 1 . . . . . . . . Shots Hit Robots 422 | . 90 7 79 8 . 14 68 70 86 Core Hits 326 | . 53 11 37 6 . 30 59 53 77 Critical Kills . | . . . . . . . . . . Critical Parts Destroyed 1 | . . . . . . . . . 1 Critical Strikes 8 | . . . 1 . . . 3 2 2 Blast 7 | . . . 1 . . . 3 2 1 Smash 1 | . . . . . . . . . 1 Melee Attacks 36 | . . . . . . 2 . 20 14 Impact 36 | . . . . . . 2 . 20 14 Slashing . | . . . . . . . . . . Piercing . | . . . . . . . . . . Sneak Attacks . | . . . . . . . . . . Combat Hostiles . | . . . . . . . . . . Follow-up Attacks . | . . . . . . . . . . Damage Inflicted 13353 | . 1890 560 1894 203 . 1019 2630 1655 3502 Guns 3493 | . 1367 105 923 129 . 105 511 14 339 Cannons 3481 | . . . 512 . . 28 742 1294 905 Explosions 5975 | . 513 455 459 74 . 886 1372 347 1869 Melee 389 | . . . . . . . . . 389 Ramming 15 | . 10 . . . . . 5 . . Kinetic 6864 | . 1278 105 1435 129 . 133 1232 1308 1244 Thermal 279 | . 89 169 . . . . 21 . . Explosive 5771 | . 513 286 459 74 . 886 1372 347 1834 Electromagnetic 35 | . . . . . . . . . 35 Impact 389 | . . . . . . . . . 389 Slashing . | . . . . . . . . . . Piercing . | . . . . . . . . . . Highest Corruption 4 | . . . . . . . 2 2 4 Average Corruption 2 | . . . . . . . 2 2 2 Corruption Purged . | . . . . . . . . . . Corruption Blocked . | . . . . . . . . . . Effects 92 | . . . . . . . 40 40 12 Message Errors 26 | . . . . . . . 10 11 5 Matter Fused 17 | . . . . . . . 7 9 1 Heat Flow Errors 10 | . . . . . . . 5 5 . Energy Discharges 14 | . . . . . . . 9 2 3 Data Loss (minor) 13 | . . . . . . . 5 6 2 Data Loss (major) 6 | . . . . . . . 2 3 1 Misfires 2 | . . . . . . . . 2 . Alerts 3 | . . . . . . . 1 2 . Weapon Failures 1 | . . . . . . . 1 . . Overload Shots . | . . . . . . . . . . Overflow Damage 223 | . . 48 . . . 21 45 6 103 Projectiles 32 | . . . . . . . 14 6 12 Explosions 147 | . . 48 . . . 21 31 . 47 Melee 44 | . . . . . . . . . 44 Knockbacks 52 | . . . 2 . . . 2 34 14 Impact . | . . . . . . . . . . Kinetic 48 | . . . 2 . . . 2 31 13 Secondary 4 | . . . . . . . . 3 1 Self-Inflicted Damage 142 | . 38 . . . . . . 29 75 Shots 6 | . 1 . . . . . . 1 4 Rammed 1 | . . . . . . . 1 . . Targets Rammed 3 | . 2 . . . . . 1 . . Kicked 2 | . 2 . . . . . . . . Crushed . | . . . . . . . . . . Highest Temperature 535 | . 90 24 295 28 . 212 428 535 289 Average Temperature 86 | . 16 9 69 16 . 70 125 143 98 Received Heat Transfer 1772 | . 96 18 234 . . 36 209 171 1008 Effects 20 | . . . . . . . 1 15 4 Shutdowns 1 | . . . . . . . . 1 . Energy Bleed 2 | . . . . . . . . 1 1 Interference 5 | . . . . . . . . 2 3 Matter Decay 2 | . . . . . . . 1 1 . Short Circuit 2 | . . . . . . . . 2 . Damage (minor) 1 | . . . . . . . . 1 . Damage (major) 6 | . . . . . . . . 6 . Damage (core) 1 | . . . . . . . . 1 . Siege Activations . | . . . . . . . . . . Robots Corrupted . | . . . . . . . . . . Combat Hostiles . | . . . . . . . . . . Parts Fried . | . . . . . . . . . . Impact Corruptions 3 | . . . . . . . . . 3 Robots Melted . | . . . . . . . . . . Combat Hostiles . | . . . . . . . . . . Parts Melted 1 | . 1 . . . . . . . . Heat Transferred 496 | . 259 200 . . . . 37 . . Parts Sabotaged . | . . . . . . . . . . Parts Stolen . | . . . . . . . . . . Parts Stripped . | . . . . . . . . . . Power Chain Reactions . | . . . . . . . . . . Missiles Intercepted . | . . . . . . . . . . Alert | -11 -10 -10 -9 -9 -9 -8 -8 -8 -8 ------- Run | Jun Mat Min Mat Min Exi Min Mat Gar Mat Peak Influence 2623 | . 331 169 279 139 . 301 352 2623 1525 Initial 1278 | . . 32 7 48 . . 6 68 1278 Average 324 | . 43 64 118 34 . 99 138 1041 1341 Maximum Alert Level 5 | . 1 . 1 . . 1 1 5 4 Low Security (%) 72 | 100 96 100 81 100 . 98 85 10 . Level 1 8 | . 3 . 18 . . 1 14 16 . Level 2 4 | . . . . . . . . 22 . Level 3 2 | . . . . . . . . 12 . Level 4 7 | . . . . . . . . 13 100 Level 5 4 | . . . . . . . . 26 . High Security . | . . . . . . . . . . Max Security . | . . . . . . . . . . Squads Dispatched 17 | . 2 1 4 . . . 1 . 9 Investigation 5 | . 1 1 2 . . . . . 1 Extermination . | . . . . . . . . . . Reinforcement 4 | . 1 . 2 . . . 1 . . Assault 3 | . . . . . . . . . 3 Garrison 5 | . . . . . . . . . 5 Intercept . | . . . . . . . . . . Searches Triggered . | . . . . . . . . . . Construction Impeded 1 | . . . . . . . 1 . . Haulers Reinforced . | . . . . . . . . . . Active Scanning Responses . | . . . . . . . . . . Cargo Convoy Interrupts . | . . . . . . . . . . Stealth | -11 -10 -10 -9 -9 -9 -8 -8 -8 -8 --------- Run | Jun Mat Min Mat Min Exi Min Mat Gar Mat Distress Signals 12 | . 2 . 4 . . . 4 . 2 Communications Jammed . | . . . . . . . . . . Distress Signals . | . . . . . . . . . . Times Spotted 196 | . 29 6 35 9 . 12 36 29 40 Peak Tracking Total 7 | . 6 3 4 4 . 3 5 4 7 Tactical Retreats 17 | . 1 . 1 1 . . . 12 2 Traps | -11 -10 -10 -9 -9 -9 -8 -8 -8 -8 ------- Run | Jun Mat Min Mat Min Exi Min Mat Gar Mat Traps Triggered 18 | . 6 . 1 . . . 1 10 . Indirectly . | . . . . . . . . . . Trap Hack Attempts . | . . . . . . . . . . Triggered . | . . . . . . . . . . Disarmed . | . . . . . . . . . . Reprogrammed . | . . . . . . . . . . Reused . | . . . . . . . . . . Traps Extracted . | . . . . . . . . . . Installed . | . . . . . . . . . . Triggered . | . . . . . . . . . . Machines | -11 -10 -10 -9 -9 -9 -8 -8 -8 -8 ---------- Run | Jun Mat Min Mat Min Exi Min Mat Gar Mat Machines Disabled 21 | . 6 4 2 . . 1 . 7 1 Max in Single Turn 4 | . 1 4 1 . . 1 . 2 1 Garrison Relay 8 | . . . . . . . . 8 . Phase Generator 1 | . . . . . . . . 1 . Machines Repaired . | . . . . . . . . . . Machines Sabotaged . | . . . . . . . . . . Overloaded Fab Kills . | . . . . . . . . . . Hacking | -11 -10 -10 -9 -9 -9 -8 -8 -8 -8 --------- Run | Jun Mat Min Mat Min Exi Min Mat Gar Mat Machines Accessed 49 | . 8 2 13 . 5 . 13 4 4 Terminals 32 | . 7 1 9 . . . 7 4 4 Fabricators . | . . . . . . . . . . Repair Stations 2 | . . . 1 . . . 1 . . Recycling Units 4 | . 1 . 1 . . . 2 . . Scanalyzers 4 | . . . 2 . . . 2 . . Garrison Access 1 | . . . . . . . 1 . . Total Hacks 166 | . 26 3 40 . 28 . 46 9 14 Successful 114 | . 16 2 25 . 28 . 34 2 7 Failed 51 | . 10 1 14 . . . 12 7 7 Catastrophic 11 | . . . 3 . . . 5 1 2 Database Lockouts 1 | . . . 1 . . . . . . Manual 57 | . 9 2 23 . 1 . 11 . 11 Terminals 101 | . 25 2 29 . . . 22 9 14 Fabricators . | . . . . . . . . . . Repair Stations 8 | . . . 2 . . . 6 . . Recycling Units 4 | . 1 . 1 . . . 2 . . Scanalyzers 23 | . . . 8 . . . 15 . . Garrison Access 1 | . . . . . . . 1 . . Terminal Hacks 54 | . 10 1 6 . 28 . 5 2 2 Record 29 | . 2 . . . 27 . . . . Part Schematic 2 | . . . 2 . . . . . . Robot Analysis 4 | . 2 . . . . . 2 . . Prototype ID Bank 9 | . 4 . 2 . . . 1 . 2 Open Door 2 | . . 1 . . . . . 1 . Branch Access Points 1 | . 1 . . . . . . . . Emergency Access Points 1 | . . . . . . . . 1 . Unreport Threat 4 | . 1 . 1 . . . 2 . . Locate Traps 1 | . . . 1 . . . . . . EX-Prototype ID Bank 1 | . . . . . 1 . . . . Fabricator Hacks . | . . . . . . . . . . Repair Station Hacks 8 | . . . 2 . . . 6 . . Scan Component 4 | . . . 1 . . . 3 . . Repair 4 | . . . 1 . . . 3 . . Recycling Unit Hacks 4 | . 1 . 1 . . . 2 . . Report Inventory 3 | . . . 1 . . . 2 . . Retrieve Components 1 | . 1 . . . . . . . . Scanalyzer 23 | . . . 8 . . . 15 . . Insert Component 13 | . . . 4 . . . 9 . . Analyze 10 | . . . 4 . . . 6 . . Garrison Access Hacks 1 | . . . . . . . 1 . . Unlock Access 1 | . . . . . . . 1 . . Unauthorized Hacks 24 | . 5 1 8 . . . 5 . 5 Terminals 24 | . 5 1 8 . . . 5 . 5 Assimilate 2 | . . . 1 . . . 1 . . Botnet 20 | . 5 1 6 . . . 4 . 4 Operators 2 | . . . 1 . . . . . 1 Fabricators . | . . . . . . . . . . Repair Stations . | . . . . . . . . . . Recycling Units . | . . . . . . . . . . Scanalyzers . | . . . . . . . . . . Garrison Access . | . . . . . . . . . . Data Cores Recovered . | . . . . . . . . . . Used . | . . . . . . . . . . Hacking Detections 35 | . 6 1 10 . . . 11 3 4 Full Trace Events 5 | . . . 2 . . . . 2 1 Feedback Events . | . . . . . . . . . . Feedback Blocked . | . . . . . . . . . . Robot Schematics Acquired . | . . . . . . . . . . Robots Built . | . . . . . . . . . . Authchips . | . . . . . . . . . . Time . | . . . . . . . . . . Total Robot Build Rating . | . . . . . . . . . . Part Schematics Acquired 11 | . . . 6 . . . 5 . . Parts Built . | . . . . . . . . . . Authchips . | . . . . . . . . . . Time . | . . . . . . . . . . Total Part Build Rating . | . . . . . . . . . . Parts Repaired 4 | . . . 1 . . . 3 . . Time 134 | . . . 26 . . . 108 . . Parts Recycled . | . . . . . . . . . . Recycled Matter . | . . . . . . . . . . Retrieved Matter . | . . . . . . . . . . Retrieved Components 9 | . 9 . . . . . . . . Parts Scanalyzed 9 | . . . 4 . . . 5 . . Part Schematics Acquired 9 | . . . 4 . . . 5 . . Parts Damaged 1 | . . . 1 . . . . . . Bothacking | -11 -10 -10 -9 -9 -9 -8 -8 -8 -8 ------------ Run | Jun Mat Min Mat Min Exi Min Mat Gar Mat Used RIF Installer . | . . . . . . . . . . Robots Hacked . | . . . . . . . . . . Non-combat . | . . . . . . . . . . Combat . | . . . . . . . . . . Robot Hacks Applied . | . . . . . . . . . . Relay Couplers Released 34 | . . . . . . . . 34 . Machine Destruction 34 | . . . . . . . . 34 . Fabnet Peak Effective % . | . . . . . . . . . . Robots Rewired . | . . . . . . . . . . Allies Hacked . | . . . . . . . . . . Hacks Repelled . | . . . . . . . . . . Allies | -11 -10 -10 -9 -9 -9 -8 -8 -8 -8 -------- Run | Jun Mat Min Mat Min Exi Min Mat Gar Mat Total Allies 6 | . . . . 3 . . 1 2 . Largest Group 3 | . . . . 3 3 3 1 3 . Highest-Rated Group 68 | . . . . 40 40 40 10 68 . Highest-Rated Ally 39 | . . . . 16 16 16 10 39 . Total Orders 1 | . . . . . . . . 1 . STAY 1 | . . . . . . . . 1 . Ally Attacks 46 | . . . . 15 . 16 . 15 . Total Damage 444 | . . . . 158 . 139 . 147 . Kills 4 | . . . . 1 . 2 . 1 . Allies Corrupted . | . . . . . . . . . . Allies Melted . | . . . . . . . . . . Intel | -11 -10 -10 -9 -9 -9 -8 -8 -8 -8 ------- Run | Jun Mat Min Mat Min Exi Min Mat Gar Mat Robot Analysis Total 4 | . 2 . . . . . 2 . . Derelict Logs Recovered 3 | . . 1 . 2 . . . . . Drone Launches . | . . . . . . . . . . Drone Recoveries . | . . . . . . . . . . Exploration | -11 -10 -10 -9 -9 -9 -8 -8 -8 -8 ------------- Run | Jun Mat Min Mat Min Exi Min Mat Gar Mat Turns Passed 19679 | 2 4422 1070 2634 1566 810 1489 3269 3450 967 Spaces Moved 8754 | 1 1312 723 1533 940 521 859 1290 1297 278 Core 4 | . 4 . . . . . . . . Treads 2552 | . . . 3 . . . 974 1297 278 Legs 1287 | 1 1286 . . . . . . . . Wheels 4911 | . 22 723 1530 940 521 859 316 . . Hover . | . . . . . . . . . . Flight . | . . . . . . . . . . Fastest Speed 120 | 120 120 140 125 155 155 155 155 240 235 Average Speed 200 | 120 303 140 151 155 155 155 219 240 236 Slowest Speed 1650 | 120 1650 140 480 155 155 155 320 240 400 Overloaded Moves . | . . . . . . . . . . Propulsion Burnouts . | . . . . . . . . . . Robots Hopped . | . . . . . . . . . . Cave-ins Triggered . | . . . . . . . . . . Exploration Rate (%) 78 | 2 99 100 93 100 94 100 83 96 22 Regions Visited 9 Branch Regions 4 Pre-discovered Areas 3 | . . 1 . 1 1 . . . . Known Exits Taken 3 | . 1 . . 1 . . 1 . . Unknown Exits Taken 5 | 1 . 1 1 . 1 1 . . . Scrap Searched 3 | . . 1 . 1 . 1 . . . Spaces Dug 39 | . . . . . . 36 . 2 1 Terrain Destroyed 512 | . 23 44 45 14 . 134 95 84 73 Melee 3 | . . . . . . 1 . 1 1 Projectile 19 | . . . 2 . . 2 11 . 4 AOE 490 | . 23 44 43 14 . 131 84 83 68 Terrain Rammed . | . . . . . . . . . . Walls Destroyed . | . . . . . . . . . . Machines Disabled . | . . . . . . . . . . Actions | -11 -10 -10 -9 -9 -9 -8 -8 -8 -8 --------- Run | Jun Mat Min Mat Min Exi Min Mat Gar Mat Total 10293 | 1 1553 764 1791 1038 525 986 1658 1507 470 Wait 819 | . 75 24 114 88 . 87 228 103 100 Move 8746 | . 1311 722 1532 939 520 858 1290 1296 278 Hop . | . . . . . . . . . . Pick Up 79 | . 23 1 31 1 2 2 17 1 1 Fast Attach 41 | . 15 . 2 . . 1 16 3 4 Attach 19 | . . . 3 . . 1 4 2 9 Detach 4 | . 1 . . . . . 1 1 1 Swap 84 | 1 12 5 18 2 1 10 19 9 7 Drop 109 | . 15 2 41 1 2 5 36 4 3 Fire 335 | . 99 10 50 7 . 20 46 50 53 Melee 36 | . . . . . . 2 . 20 14 Ram . | . . . . . . . . . . Kick 2 | . 2 . . . . . . . . Crush 1 | . . . . . . . 1 . . Escape Stasis 18 | . . . . . . . . 18 . Rewire . | . . . . . . . . . . Trap . | . . . . . . . . . . Miscellaneous . | . . . . . . . . . . Route ------- -11/Junkyard -10/Materials (discovered 4 exits: *Mat x3 / *Min) -10/Mines (discovered 2 exits: *Mat x2) -9/Materials (discovered 4 exits: *Mat x2 / [*Min x2]) -9/Mines (discovered 4 exits: *Mat x2 / *Exi / [*Zio]) -9/Exiles (discovered 2 exits: [*Min x2]) -8/Mines (discovered 2 exits: *Mat x2) -8/Materials (discovered 3 exits: [*Fac x2] / Gar) -8/Garrison (discovered 3 exits: *Mat x3) -8/Materials History --------- Turn | Location | Event 3 | -11/Junkyard | Discovered new exit (range 0) 3 | -11/Junkyard | Entered Materials 71 | -10/Materials | Discovered new exit (range 16) 169 | -10/Materials | Destroyed 11 combat bots 261 | -10/Materials | Discovered new exit (range 12) 318 | -10/Materials | Build established: Mutant 519 | -10/Materials | Discovered new exit (range 16) 866 | -10/Materials | Identified exit to Mines 2545 | -10/Materials | Discovered new exit (range 9) 4425 | -10/Materials | Entered Mines 4427 | -10/Mines | Met a Derelict bent on vengeance 4456 | -10/Mines | Discovered new exit (range 9) 4466 | -10/Mines | Met a Derelict shopkeep closing up shop 4514 | -10/Mines | Core integrity fell below 50% 4811 | -10/Mines | Discovered new exit (range 14) 4826 | -10/Mines | Learned location of Storage (-7) 5340 | -10/Mines | Learned Materials terminal intel 5495 | -10/Mines | Entered Materials 5495 | -9/Materials | Evolved 2 slots: Propulsion x1, Weapon x1 5496 | -9/Materials | Loaded intel: 11 terminal locations 5750 | -9/Materials | Repaired Med. Laser 5815 | -9/Materials | Build established: Tank 5875 | -9/Materials | Central database locked down 6108 | -9/Materials | Discovered new exit (range 13) 6574 | -9/Materials | Discovered new exit (range 8) 6980 | -9/Materials | Discovered new exit (range 11) 7413 | -9/Materials | Discovered new exit (range 5) 8129 | -9/Materials | Entered Mines 8130 | -9/Mines | A Derelict revealed a hidden shortcut to a safe place 8133 | -9/Mines | Learned location of Zion (-7) 8160 | -9/Mines | Received a Rocket Launcher from a helpful Derelict 8248 | -9/Mines | Assembled infested the area 8380 | -9/Mines | Discovered new exit (range 14) 8573 | -9/Mines | Build established: Mutant 8618 | -9/Mines | Assisted by bots powering up and referring to "LRC-V3" 8656 | -9/Mines | Identified exit to Exiles 8941 | -9/Mines | Discovered new exit (range 8) 9100 | -9/Mines | Found a hidden stash of uninstalled traps 9695 | -9/Mines | Entered Exiles 9695 | -9/Exiles | Accompanied by 3 allies 9719 | -9/Exiles | Discovered new exit (range 15) 9767 | -9/Exiles | Met 8R-AWN 9793 | -9/Exiles | Met EX-HEX 9885 | -9/Exiles | Met EX-DEC 9918 | -9/Exiles | Visited The Gauntlet 10159 | -9/Exiles | Met EX-BIN 10184 | -9/Exiles | Aligned with FarCom system 10185 | -9/Exiles | Given EX-Vault access code 10260 | -9/Exiles | Opened EX-Vault 10279 | -9/Exiles | Found Supersonic Drone Bay 10315 | -9/Exiles | Warned to stay clear of 0b10 Research branches 10485 | -9/Exiles | Discovered new exit (range 15) 10505 | -9/Exiles | Left Exiles lab with Supersonic Drone Bay 10505 | -9/Exiles | Entered Mines 10505 | -8/Mines | Accompanied by 3 allies 10512 | -8/Mines | Discovered new exit (range 12) 10696 | -8/Mines | Discovered new exit (range 8) 11994 | -8/Mines | Entered Materials 11994 | -8/Materials | Evolved 2 slots: Utility x1, Weapon x1 12401 | -8/Materials | Build established: Tank 12422 | -8/Materials | Discovered new exit (range 13) 12857 | -8/Materials | Build established: Skirmisher 13706 | -8/Materials | Build established: Tank 14669 | -8/Materials | Discovered new exit (range 10) 15123 | -8/Materials | Repaired Imp. Treads 15156 | -8/Materials | Repaired Imp. Treads 15202 | -8/Materials | Repaired Imp. Shield Generator 15263 | -8/Materials | Identified exit to Garrison 15263 | -8/Materials | Entered Garrison 15263 | -8/Garrison | Accompanied by 1 ally 15318 | -8/Garrison | Triggered checkpoint 15438 | -8/Garrison | Rescued a captive Derelict 15438 | -8/Garrison | Rescued a captive Derelict 15658 | -8/Garrison | Build established: Mutant 15702 | -8/Garrison | Triggered checkpoint 15724 | -8/Garrison | Triggered checkpoint 15862 | -8/Garrison | Triggered checkpoint 16031 | -8/Garrison | Build established: Tank 16087 | -8/Garrison | Discovered new exit (range 10) 16458 | -8/Garrison | Triggered checkpoint 16524 | -8/Garrison | Garrison Relay disabled 16617 | -8/Garrison | Discovered new exit (range 9) 16810 | -8/Garrison | Build established: Mutant 16854 | -8/Garrison | Discovered new exit (range 10) 17016 | -8/Garrison | Garrison Relay disabled 17130 | -8/Garrison | Triggered checkpoint 17328 | -8/Garrison | Phase Generator disabled 17570 | -8/Garrison | Triggered checkpoint 17955 | -8/Garrison | Garrison Relay disabled 17957 | -8/Garrison | Garrison Relay disabled 18044 | -8/Garrison | Garrison Relay disabled 18200 | -8/Garrison | Garrison Relay disabled 18477 | -8/Garrison | Build established: Tank 18713 | -8/Garrison | Entered Materials 19043 | -8/Materials | Garrison activated, responded to threat 19113 | -8/Materials | First assault squad dispatched 19242 | -8/Materials | Core integrity fell below 50% 19280 | -8/Materials | Lost 5 parts (1n3u1w) 19485 | -8/Materials | Build established: Mutant 19530 | -8/Materials | Garrison activated, responded to threat 19626 | -8/Materials | Core integrity fell below 20% 19680 | -8/Materials | Destroyed by Y-45 Defender with Beam Rifle Last Messages --------------- 19652_ U-05 Engineer builds a Wall. 19652_ G-47 Trooper suffers critical hit (Burn). 19652_ U-05 Engineer lays Concrete. 19653_ G-47 Trooper destroyed. 19653_ U-05 Engineer lays Concrete. 19655_ The unstable cave ceiling collapses. 19655_ U-05 Engineer builds a Wall. 19656_ U-05 Engineer lays Concrete. 19658_ Imp. Treads destroyed. 19658_ Acquired 22 matter. 19659_ U-05 Engineer lays Concrete. 19667_ K-01 Serf collects debris. 19668_ U-05 Engineer builds a Wall. 19668_ U-05 Engineer lays Concrete. 19670_ U-05 Engineer builds a Door. 19671_ K-01 Serf collects debris. 19671_ U-05 Engineer builds a Wall. 19679_ U-05 Engineer lays Concrete. 19680_ UMMUDX58WMYI0S|XUV&GANRYFJKT2X6FRWS2 19680_ U-05 Engineer lays Concrete. Map ----- +----------------------------------------------------+ | ?????????????????????????????????????????????????? | | ?????????????????????????????????????????????????? | | ?????????????????????????????????????????????????? | | ?????????????????????????????????????????????????? | | ?????????????????????????????????????????????????? | | ?????????????????????????????????????????????????? | | ?????????????????????????????????????????????????? | | ?????????????????????????????????????????????????? | | ?????????????????????????????????????????????????? | | ?????????????????????????????????????????????????? | | ?????????????????????????????????????????????????? | | ?????????????????????????????????????????????????? | | ?????????????????????????????????????????????????? | | ?????????????????????????????????????????????????? | | ?????????????????????????????????????????????????? | | ?????????????????????????????????????????????????? | | ??????????s?s????????????????????????????????????? | | ?????????????????????????????????????????????????? | | ??????????s??????????????????????????????????????? | | ?????????????????????#######?????????????????????? | | ?????????????#####+### #?????????????????????? | | ?????????????? #?????????????????????? | | ???????????????? #?????????????????????? | | ??????????????????? Y #?????????????????????? | | ?????????????????????# #?????????????????????? | | ??????????????????????# @#??????????????????????? | | ??????????????????????# #??????????????????????? | | ??????????????????????#a #??????????????????????? | | ??????????????????????# #??????????????????????? | | ??????????????????????# #??????????????????????? | | ??????????????????????# ###########????????????? | | ?????????????????????## # #?######?????? | | ????????????????????### #?# #?????? | | ????????????????????# # # ### #?????? | | ????????????????????# Y# ## #?????? | | ????????????????????### + # #?????? | | ???????????Y?? # # #?????? | | ????????????? u# ""#?????? | | ????????????? %% # T"#?????? | | ??????????????######### Y # ""####### | | ??????????????????????# #### # # | | ??????????????????????# == ! | | ??????????????????????+ == != | | ??????????????????????# *%[ | | ??????????????????????# =[ # | | ??????????????????????# # ! | | ?????????????????????? """ """ #####+# | | ?????????????????????# """ """ % * = | | ?????????????????????# ?"" ""% | | ?????????????????????????? ? != | +----------------------------------------------------+ Best States ------------- Heat Dissipation 31 Energy Generation 14 Energy Capacity 280 Matter Stores 367 Matter Capacity 500 Sight Range 16 Terrain Scan Density 10 Armor Coverage 375 Evasion (%) 55 Launcher Accuracy 20 Recoil Reduction 3 Item Schematics ----------------- Huge Storage Unit | -9/Materials | Hacked Hrd. Light Armor Plating | -9/Materials | Hacked Adv. Beam Cannon | -9/Materials | Scanalyzed Imp. Treads | -9/Materials | Scanalyzed Lrg. Matter Pod | -9/Materials | Scanalyzed Rocket Launcher | -9/Materials | Scanalyzed Imp. Shield Generator | -8/Materials | Scanalyzed Hvy. Ion Engine | -8/Materials | Scanalyzed Imp. Light Cannon | -8/Materials | Scanalyzed Imp. Grenade Launcher | -8/Materials | Scanalyzed Hcp. Storage Unit | -8/Materials | Scanalyzed Robot Schematics ------------------ None Fabricated ------------ Nothing Alien Tech Used ----------------- None Achievements -------------- None Challenges ------------ None Game ------ Seed RagnarokVortexPlating Manual? 0 Play Time 02:29:20 Cumulative 255.1 hours Start 2023.10.04 @ 18:14:34 End 2023.10.04 @ 20:51:21 Sessions 3 Manual Loads 0 Difficulty Rogue Special Mode None Game No. 141 Rogue 97 Adventurer 44 Explorer 0 Win Type - Total 2 Types 2/0/0/0/0/0/0/0/0 Lore% 60 Gallery% 63 Achievement% 57 Wizard Run 0 Options --------- ASCII 0 Keyboard 1 Movement Vi Keybinds 1 Fullscreen 2 Font 18/X11Bold Map View 76x50 Tactical HUD 1 Map Filters NONE Filters NONE Steam 1 RUN: b2722974-a033-4b3c-a521-75114d23d3f0